bitfinex/quotes_SOLUSD_20260302
["timestamp","ask_amount","ask_price","bid_price","bid_amount"]
[1772422726159,11.76761317,84.979,84.948,2.67590519]
[1772422727169,11.76761317,84.979,84.949,11.77176894]
[1772422727681,11.76761317,84.979,84.95,2.67590519]
[1772422728186,11.76761317,84.979,84.951,11.7714918]
[1772422728891,8.68818232,84.97,84.939,2.67590519]
[1772422729293,8.68818232,84.97,84.925,3.69383402]
[1772422729294,11.76761317,84.979,84.944,2.67590519]
[1772422730297,11.76761317,84.979,84.946,2.67590519]
[1772422731278,58.80115144,85.033,84.966,2.67590519]
[1772422731478,8.68818232,85.01,84.966,2.67590519]
[1772422731686,8.68818232,85.02,84.968,2.67590519]
[1772422732379,11.76207671,85.019,84.97,2.67590519]
[1772422732581,11.76207671,85.019,84.969,41.19149336]
[1772422732582,11.76069341,85.029,84.973,2.96022833]
[1772422732894,8.68818232,85.02,84.973,2.96022833]
[1772422733478,41.16242693,85.029,84.973,2.96022833]
[1772422733678,8.68818232,85.02,84.973,2.96022833]
[1772422734494,11.76207671,85.019,84.978,2.67590519]
[1772422735894,8.68818232,85.0,84.962,2.67590519]
[1772422736099,8.68818232,84.99,84.962,2.67590519]
[1772422736295,8.68818232,85.0,84.962,2.67590519]
[1772422736796,8.68818232,85.0,84.961,11.77008064]
[1772422736797,0.28432314,85.016,84.964,2.67590519]
[1772422736981,8.68818232,85.0,84.964,2.67590519]
[1772422737695,8.68818232,84.99,84.964,2.67590519]
[1772422737998,8.68818232,85.0,84.964,2.67590519]
[1772422738698,0.28432314,85.016,84.958,11.77039911]
[1772422738699,8.68818232,84.99,84.958,11.77039911]
[1772422738995,11.76622857,84.989,84.958,2.67590519]
[1772422739878,8.68818232,84.98,84.95,2.67590519]
[1772422740793,11.76622857,84.989,84.95,2.67590519]
[1772422741378,11.76622857,84.989,84.952,2.67590519]
[1772422744185,11.76622857,84.989,84.953,11.77121467]
[1772422744386,11.76622857,84.989,84.954,2.67590519]
[1772422746198,11.76622857,84.989,84.956,2.67590519]
[1772422747610,11.76622857,84.989,84.955,11.77093755]
[1772422747611,8.68818232,85.02,84.962,2.96022833]
[1772422748513,11.76207671,85.019,84.964,2.96022833]
[1772422748720,8.68818232,85.01,84.964,0.14216157]
[1772422748920,8.68818232,84.98,84.955,2.67590519]
[1772422749095,8.68818232,84.99,84.955,2.67590519]
[1772422749697,8.68818232,84.98,84.955,2.67590519]
[1772422750621,8.68818232,84.97,84.946,2.67590519]
[1772422750803,8.68818232,84.96,84.92,2.67590519]
[1772422750996,8.68818232,84.95,84.92,2.67590519]
[1772422751615,8.68818232,84.96,84.92,2.67590519]
[1772422751923,8.68818232,84.93,84.903,2.67590519]
[1772422752102,8.68818232,84.92,84.899,2.67590519]
[1772422752713,20.46402265,84.92,84.899,2.67590519]
[1772422753024,8.68818232,84.91,84.891,3.69460963]
[1772422753218,8.68818232,84.91,84.891,1.01870444]
[1772422754819,8.68818232,84.92,84.893,2.67590519]
[1772422755021,11.77440244,84.93,84.892,11.77967299]
[1772422755022,8.68818232,84.94,84.897,2.67590519]
[1772422755428,8.68818232,84.93,84.897,2.67590519]
[1772422755627,8.68818232,84.92,84.897,2.67590519]
[1772422756526,8.68818232,84.92,84.892,11.77967299]
[1772422757112,1.58,85.288,84.892,11.77967299]
[1772422757113,8.68818232,84.95,84.907,2.67590519]
[1772422757412,8.68818232,84.96,84.907,2.67590519]
[1772422757613,8.68818232,84.95,84.907,2.67590519]
[1772422757813,8.68818232,84.96,84.907,2.67590519]
[1772422758018,8.68818232,84.97,84.917,2.67590519]
[1772422758215,8.68818232,84.95,84.917,2.67590519]
[1772422758415,8.68818232,84.96,84.917,2.67590519]
[1772422758833,8.68818232,84.95,84.917,2.67590519]
[1772422759034,8.68818232,84.96,84.918,11.77606632]
[1772422759234,8.68818232,84.96,84.919,2.67590519]
[1772422759921,8.68818232,84.98,84.922,2.96022833]
[1772422761565,11.7673362,84.982,84.927,2.96022833]
[1772422762647,8.68818232,84.98,84.927,2.96022833]
[1772422762941,8.68818232,84.97,84.927,2.96022833]
[1772422763347,8.68818232,84.96,84.923,11.77537298]
[1772422763642,8.68818232,84.94,84.906,2.67590519]
[1772422764044,8.68818232,84.95,84.906,2.67590519]
[1772422764849,8.68818232,84.93,84.906,2.67590519]
[1772422765143,0.28432314,84.958,84.906,2.67590519]
[1772422765346,8.68818232,84.94,84.906,2.67590519]
[1772422765728,8.68818232,84.96,84.893,2.67590519]
[1772422765729,8.68818232,84.92,84.893,2.67590519]
[1772422765929,41.20604198,84.939,84.893,2.67590519]
[1772422765930,11.77315485,84.939,84.893,2.67590519]
[1772422766432,8.68818232,84.93,84.893,2.67590519]
[1772422767556,8.68818232,84.92,84.891,3.69460963]
[1772422767753,58.8519168,84.959,84.892,2.67590519]
[1772422767754,8.68818232,84.93,84.892,2.67590519]
[1772422769752,8.68818232,84.93,84.894,2.67590519]
[1772422771841,0.28432314,84.939,84.896,2.67590519]
[1772422772066,8.68818232,84.94,84.896,2.67590519]
[1772422773742,8.68818232,84.93,84.896,2.67590519]
[1772422776157,11.77454108,84.929,84.898,2.67590519]
[1772422779272,11.77454108,84.929,84.9,2.67590519]
[1772422783971,8.68818232,84.94,84.901,11.77842428]
[1772422784167,8.68818232,84.94,84.902,2.67590519]
[1772422784474,3.65309714,84.94,84.902,2.67590519]
[1772422785358,41.19731157,84.957,84.902,2.67590519]
[1772422785558,3.65309714,84.95,84.902,2.67590519]
[1772422785954,11.77176894,84.949,84.904,2.67590519]
[1772422786155,3.65309714,84.93,84.904,2.67590519]
[1772422786370,0.28432314,84.909,84.871,2.67590519]
[1772422786670,3.65309714,84.89,84.863,2.67590519]
[1772422787767,3.65309714,84.9,84.872,2.67590519]
[1772422787956,11.78008929,84.889,84.872,2.67590519]
[1772422788359,11.78008929,84.889,84.865,2.67590519]
[1772422788777,11.78008929,84.889,84.87,2.87590519]
[1772422790461,8.70733896,84.89,84.87,2.87590519]
[1772422790879,49.93724675,84.89,84.87,0.2]
[1772422791076,8.70733896,84.9,84.871,2.67590519]
[1772422791460,41.21477608,84.921,84.871,2.67590519]
[1772422791461,8.70733896,84.91,84.871,2.67590519]
[1772422791755,41.21477608,84.921,84.871,2.67590519]
[1772422791756,8.70733896,84.92,84.871,2.67590519]
[1772422794169,41.21574676,84.919,84.873,2.67590519]
[1772422795478,41.21574676,84.919,84.875,2.67590519]
[1772422798394,8.70733896,84.91,84.877,2.67590519]
[1772422798576,8.70733896,84.92,84.877,2.67590519]
[1772422799502,8.70733896,84.91,84.877,2.67590519]
[1772422800181,8.70733896,84.91,84.876,11.78189358]
[1772422800182,20.48459805,84.91,84.879,2.67590519]
[1772422801381,8.70733896,84.92,84.879,2.67590519]
[1772422801795,8.70733896,84.91,84.879,2.67590519]
[1772422803498,8.70733896,84.91,84.881,2.67590519]
[1772422804699,8.70733896,84.9,84.881,2.67590519]
[1772422804897,8.70733896,84.91,84.881,2.67590519]
[1772422805605,11.77731453,84.909,84.881,2.67590519]
[1772422805807,8.70733896,84.91,84.883,2.67590519]
[1772422806111,8.70733896,84.93,84.883,2.67590519]
[1772422806321,8.70733896,84.92,84.883,2.67590519]
[1772422806483,8.70733896,84.9,84.883,2.67590519]
[1772422806685,58.85487595,84.955,84.883,2.67590519]
[1772422806686,8.70733896,84.91,84.883,2.67590519]
[1772422807800,58.85487595,84.955,84.821,61.8]
[1772422807801,8.70733896,84.89,84.821,61.8]
[1772422807999,8.70733896,84.92,84.833,2.67590519]
[1772422808000,8.70733896,84.87,84.833,2.67590519]
[1772422808203,8.70733896,84.89,84.833,2.67590519]
[1772422808497,8.70733896,84.92,84.832,11.78800452]
[1772422808498,8.70733896,84.9,84.836,2.96022833]
[1772422809682,11.77870175,84.899,84.836,2.96022833]
[1772422809883,11.77870175,84.899,84.853,0.28432314]
[1772422810110,11.77870175,84.899,84.858,2.67590519]
[1772422810792,3.65600426,84.89,84.858,2.67590519]
[1772422811305,3.65600426,84.9,84.858,2.67590519]
[1772422811504,3.65600426,84.93,84.863,0.28432314]
[1772422811692,11.77454108,84.929,84.875,0.14216157]
[1772422812015,3.65600426,84.92,84.878,2.67590519]
[1772422813397,3.65600426,84.92,84.88,2.67590519]
[1772422813398,11.77592764,84.919,84.88,2.67590519]
[1772422814817,3.65600426,84.9,84.88,2.67590519]
[1772422815415,3.65600426,84.9,84.86,41.52872568]
[1772422815617,11.77798957,84.905,84.86,41.52872568]
[1772422815997,3.65600426,84.9,84.86,41.52872568]
[1772422816411,11.77870175,84.899,84.86,41.24440254]
[1772422817215,14.150373,84.899,84.86,41.24440254]
[1772422817524,2.37167125,84.898,84.861,2.56453775]
[1772422817727,11.77870175,84.899,84.854,2.56453775]
[1772422817728,3.65600426,84.88,84.854,2.56453775]
[1772422818020,2.37167125,84.889,84.854,2.56453775]
[1772422819226,2.37167125,84.889,84.855,11.78480938]
[1772422819429,3.65600426,84.9,84.858,2.56453775]
[1772422821325,3.65600426,84.9,84.86,2.56453775]
[1772422821920,11.77870175,84.899,84.86,2.56453775]
[1772422823527,11.77870175,84.899,84.862,2.56453775]
[1772422823730,2.37167125,84.898,84.862,2.56453775]
[1772422825419,2.37167125,84.898,84.864,2.56453775]
[1772422826028,11.77897923,84.897,84.864,2.56453775]
[1772422826709,2.37167125,84.896,84.864,2.56453775]
[1772422827110,2.37167125,84.899,84.864,2.56453775]
[1772422827311,2.37167125,84.898,84.864,2.56453775]
[1772422827515,3.65600426,84.89,84.866,2.56453775]
[1772422828021,2.37167125,84.896,84.866,2.56453775]
[1772422830236,6.02767551,84.89,84.859,2.56453775]
[1772422830440,2.37167125,84.898,84.863,2.56453775]
[1772422832235,2.37167125,84.905,84.869,2.56453775]
[1772422832639,2.37167125,84.908,84.869,2.56453775]
[1772422834631,3.65600426,84.9,84.871,2.56453775]
[1772422834829,2.37167125,84.906,84.871,2.56453775]
[1772422835740,3.65600426,84.9,84.871,2.56453775]
[1772422836040,2.37167125,84.899,84.871,2.56453775]
[1772422836442,2.37167125,84.899,84.873,2.56453775]
[1772422837128,2.37167125,84.925,84.877,2.56453775]
[1772422838222,3.65600426,84.93,84.881,2.56453775]
[1772422838539,2.37167125,84.939,84.897,2.56453775]
[1772422839246,2.37167125,84.946,84.907,2.56453775]
[1772422840445,2.37167125,84.939,84.908,11.77745324]
[1772422840636,2.37167125,84.939,84.909,2.56453775]
[1772422841342,11.77329346,84.938,84.909,2.56453775]
[1772422841527,2.37167125,84.937,84.909,2.56453775]
[1772422841728,2.37167125,84.929,84.903,11.77802008]
[1772422842039,2.37167125,84.929,84.898,2.56453775]
[1772422844446,2.37167125,84.929,84.9,2.56453775]
[1772422844846,2.37167125,84.935,84.9,2.56453775]
[1772422845632,11.77342554,84.938,84.9,2.56453775]
[1772422846137,11.77273904,84.942,84.902,2.56453775]
[1772422846539,3.65600426,84.94,84.902,2.56453775]
[1772422846842,6.02767551,84.94,84.902,2.56453775]
[1772422847043,2.480478,84.939,84.902,2.56453775]
[1772422848354,11.77329346,84.938,84.904,2.35527487]
[1772422849039,62.50360404,84.96,84.908,2.35527487]
[1772422849040,3.65229636,84.95,84.908,2.35527487]
[1772422849351,11.77211167,84.947,84.908,2.35527487]
[1772422849855,14.25255209,84.947,84.908,2.35527487]
[1772422850232,14.25255209,84.947,84.909,11.77731453]
[1772422850437,14.25255209,84.947,84.91,2.35527487]
[1772422851252,2.48010182,84.946,84.91,2.35527487]
[1772422852933,2.48010182,84.946,84.909,11.77731453]
[1772422852934,2.48010182,84.946,84.911,11.77703713]
[1772422853146,11.77232326,84.945,84.912,2.35527487]
[1772422854354,11.77232326,84.945,84.914,2.35527487]
[1772422855239,3.65229636,84.94,84.914,2.35527487]
[1772422855555,2.47878587,84.944,84.914,2.35527487]
[1772422855932,11.77232326,84.945,84.914,2.35527487]
[1772422856338,2.47846627,84.948,84.916,2.35527487]
[1772422856652,11.77176894,84.949,84.918,2.35527487]
[1772422856855,3.65229636,84.96,84.918,2.35527487]
[1772422857241,2.47815034,84.959,84.918,2.35527487]
[1772422857958,2.47783805,84.957,84.92,2.35527487]
[1772422860261,2.47783805,84.957,84.917,0.28432314]
[1772422860262,11.7705219,84.958,84.922,2.35527487]
[1772422861160,2.47692251,84.979,84.927,0.28432314]
[1772422861373,2.47692251,84.969,84.925,2.35527487]
[1772422861540,3.65229636,84.96,84.917,2.35527487]
[1772422861742,11.76719474,84.983,84.92,2.63959801]
[1772422862054,14.24381906,84.983,84.92,2.63959801]
[1772422862253,2.47662432,84.983,84.925,2.63959801]
[1772422863583,11.76719775,84.982,84.935,2.35527487]
[1772422863759,11.76719775,84.982,84.947,2.35527487]
[1772422864361,2.47603817,84.979,84.947,2.35527487]
[1772422864566,2.47575013,84.959,84.929,3.69383402]
[1772422864864,6.12804649,84.95,84.926,2.35527487]
[1772422865071,2.47575013,84.95,84.926,2.35527487]
[1772422865485,3.65229636,84.96,84.926,2.35527487]
[1772422865486,2.47575013,84.959,84.926,2.35527487]
[1772422866267,2.4754654,84.957,84.926,14.13023189]
[1772422866586,2.47518394,84.949,84.926,14.13023189]
[1772422868073,2.47490572,84.948,84.918,2.35527487]
[1772422868385,2.47490572,84.959,84.918,2.35527487]
[1772422868582,2.47463069,84.958,84.918,2.35527487]
[1772422870291,2.47435882,84.956,84.92,2.35527487]
[1772422872469,2.4735618,84.963,84.925,0.28432314]
[1772422872684,3.65229636,84.96,84.928,2.35527487]
[1772422872868,2.4735618,84.959,84.922,2.35527487]
[1772422873192,2.4735618,84.978,84.928,2.35527487]
[1772422873378,2.32315386,84.977,84.937,2.35527487]
[1772422875190,2.32315386,84.975,84.939,2.39301628]
[1772422875586,3.65229636,84.97,84.928,2.39301628]
[1772422875791,41.18810015,84.976,84.928,2.39301628]
[1772422875792,2.32315386,84.959,84.928,2.39301628]
[1772422876496,3.65229636,84.96,84.92,7.8]
[1772422876497,2.32315386,84.949,84.92,7.8]
[1772422876677,2.32315386,84.949,84.921,2.39301628]
[1772422877197,2.44914021,84.958,84.922,2.42316387]
[1772422877395,2.44914021,84.964,84.928,2.42316387]
[1772422877692,11.76982921,84.963,84.928,2.42316387]
[1772422879179,11.76982921,84.963,84.93,2.42316387]
[1772422880288,11.76982921,84.963,84.931,11.77426381]
[1772422880486,11.76982921,84.963,84.932,2.42316387]
[1772422882285,11.76982921,84.963,84.934,2.42316387]
[1772422882998,2.44914021,84.949,84.921,2.42316387]
[1772422883380,3.65229636,84.96,84.924,11.77518758]
[1772422883702,11.76982921,84.963,84.925,2.70748701]
[1772422884502,14.21841534,84.967,84.927,2.70748701]
[1772422884680,2.44914021,84.966,84.927,2.70748701]
[1772422886301,11.76955216,84.965,84.929,2.42316387]
[1772422886895,2.44914021,84.964,84.929,2.42316387]
[1772422888292,2.44914021,84.959,84.929,2.42316387]
[1772422888602,2.44914021,84.959,84.927,0.28432314]
[1772422888603,2.44914021,84.959,84.931,2.42316387]
[1772422889498,11.7705219,84.958,84.931,2.42316387]
[1772422889699,2.44914021,84.957,84.931,2.42316387]
[1772422890588,11.770799,84.956,84.931,2.42316387]
[1772422893384,2.44914021,84.955,84.931,2.42316387]
[1772422893591,2.44914021,84.949,84.921,11.77553909]
[1772422894104,2.44914021,84.949,84.921,2.42316387]
[1772422895208,2.44914021,84.949,84.923,2.42316387]
[1772422896610,11.77107625,84.954,84.923,2.42316387]
[1772422897184,2.44914021,84.968,84.929,2.42316387]
[1772422897409,2.44914021,84.959,84.929,2.42316387]
[1772422898809,2.44914021,84.959,84.923,2.42316387]
[1772422898994,2.44914021,84.959,84.92,7.8]
[1772422898995,2.44914021,84.949,84.921,2.42316387]
[1772422899193,2.44914021,84.949,84.922,2.42316387]
[1772422899400,11.77190751,84.948,84.922,2.42316387]
[1772422900213,2.44914021,84.947,84.922,2.42316387]
[1772422901513,2.44914021,84.953,84.924,2.42316387]
[1772422903310,11.77176894,84.949,84.924,2.42316387]
[1772422903710,11.77176894,84.949,84.925,11.77509567]
[1772422903926,11.77176894,84.949,84.926,2.42316387]
[1772422904512,11.77081673,84.956,84.926,2.42316387]
[1772422905417,11.7702938,84.96,84.928,2.42316387]
[1772422906334,11.76950728,84.966,84.93,2.42316387]
[1772422906615,14.21864749,84.966,84.93,2.42316387]
[1772422906798,11.76950728,84.966,84.93,2.42316387]
[1772422907001,2.44914021,84.959,84.93,2.42316387]
[1772422907393,11.76950728,84.966,84.93,2.42316387]
[1772422907394,2.34919119,84.965,84.93,2.42316387]
[1772422908304,2.34919119,84.947,84.92,10.23530543]
[1772422908628,2.34919119,84.947,84.922,2.43530543]
[1772422909002,2.34919119,84.947,84.92,7.8]
[1772422909204,2.34919119,84.947,84.921,2.43530543]
[1772422910017,2.34919119,84.939,84.92,5.33480015]
[1772422910320,41.2016763,84.948,84.921,2.57055252]
[1772422912208,3.65189474,84.94,84.921,2.57055252]
[1772422912609,41.2016763,84.948,84.921,2.57055252]
[1772422913123,41.2016763,84.948,84.911,2.57055252]
[1772422913518,3.65189474,84.94,84.911,2.57055252]
[1772422914320,11.77315485,84.939,84.911,2.57055252]
[1772422915408,11.77315485,84.939,84.911,11.77693586]
[1772422915621,11.77315485,84.939,84.912,2.57055252]
[1772422916506,29.42976879,84.948,84.912,2.57055252]
[1772422916707,3.65189474,84.94,84.912,2.57055252]
[1772422917108,29.42976879,84.948,84.912,2.57055252]
[1772422918323,29.42976879,84.948,84.913,11.77675974]
[1772422918522,11.77176894,84.949,84.914,2.57055252]
[1772422919521,3.65189474,84.94,84.914,2.57055252]
[1772422919742,41.20119129,84.949,84.914,2.57055252]
[1772422920223,41.20119129,84.949,84.915,2.57055252]
[1772422921838,41.20119129,84.949,84.92,7.8]
[1772422922020,41.20119129,84.949,84.921,2.57055252]
[1772422922212,11.77176894,84.949,84.921,2.57055252]
[1772422922431,11.7705219,84.958,84.923,2.57055252]
[1772422922728,3.65189474,84.95,84.923,2.57055252]
[1772422924233,11.77176894,84.949,84.923,2.57055252]
[1772422924614,41.20119129,84.949,84.923,2.57055252]
[1772422926219,41.20119129,84.949,84.92,7.8]
[1772422926536,3.65189474,84.94,84.92,7.8]
[1772422926835,3.65189474,84.94,84.911,2.57055252]
[1772422927340,3.65189474,84.94,84.902,2.57055252]
[1772422927538,3.65189474,84.92,84.895,3.69383402]
[1772422927842,3.65189474,84.92,84.889,2.57055252]
[1772422928025,3.65189474,84.91,84.889,2.57055252]
[1772422928842,15.42908191,84.91,84.889,2.57055252]
[1772422929551,15.42908191,84.91,84.872,2.57055252]
[1772422929734,3.69383402,84.953,84.878,2.57055252]
[1772422929923,3.65189474,84.92,84.887,0.28432314]
[1772422930123,3.65189474,84.93,84.888,2.57055252]
[1772422930421,0.28432314,84.949,84.888,2.57055252]
[1772422930620,3.65189474,84.94,84.888,2.57055252]
[1772422930837,29.42769027,84.954,84.892,2.57055252]
[1772422931049,3.65189474,84.94,84.898,2.57055252]
[1772422931219,29.42769027,84.954,84.903,0.28432314]
[1772422931220,3.65189474,84.95,84.903,0.28432314]
[1772422931426,3.65189474,84.95,84.908,2.57055252]
[1772422931827,29.42769027,84.954,84.908,2.57055252]
[1772422932024,11.76622857,84.989,84.91,2.57055252]
[1772422932223,3.65189474,84.98,84.931,0.28432314]
[1772422932430,3.65189474,84.97,84.938,2.57055252]
[1772422932845,3.65189474,84.96,84.938,2.57055252]
[1772422933143,3.65189474,84.97,84.939,2.57055252]
[1772422933848,3.65189474,84.98,84.939,2.57055252]
[1772422934930,0.1,84.99,84.941,2.57055252]
[1772422935137,3.65189474,84.98,84.941,2.57055252]
[1772422937249,11.76761317,84.979,84.943,2.57055252]
[1772422937452,11.76697435,84.984,84.947,2.57055252]
[1772422938828,11.76697435,84.984,84.954,0.04]
[1772422939030,3.65189474,84.98,84.954,0.04]
[1772422939248,11.76761317,84.979,84.954,2.61055252]
[1772422939646,3.65189474,84.97,84.954,0.04]
[1772422940047,41.1866461,84.979,84.954,0.04]
[1772422940237,11.76761317,84.979,84.954,2.61055252]
[1772422944159,41.1866461,84.979,84.954,2.61055252]
[1772422944553,11.76702895,84.984,84.954,2.61055252]
[1772422945758,41.18191522,84.989,84.956,2.57055252]
[1772422946752,3.65189474,84.98,84.956,2.57055252]
[1772422948054,0.1,84.99,84.958,2.57055252]
[1772422948435,3.75189474,84.99,84.958,2.57055252]
[1772422950168,11.76622857,84.989,84.96,2.57055252]
[1772422950462,11.76622857,84.989,84.954,0.04]
[1772422950463,3.65189474,84.97,84.954,0.04]
[1772422950758,3.65189474,84.96,84.947,2.57055252]
[1772422950955,3.65189474,84.97,84.947,2.57055252]
[1772422951550,3.65189474,84.96,84.937,2.57055252]
[1772422952245,11.77038336,84.959,84.926,2.85487566]
[1772422952563,11.77038336,84.959,84.926,2.57055252]
[1772422952564,3.65189474,84.95,84.926,2.57055252]
[1772422955164,11.77176894,84.949,84.926,2.57055252]
[1772422959564,3.65189474,84.96,84.927,2.57055252]
[1772422959770,3.65189474,84.97,84.929,2.57055252]
[1772422960351,3.65189474,84.96,84.929,2.57055252]
[1772422961957,11.76636701,84.988,84.93,2.57055252]
[1772422962273,3.65189474,84.97,84.93,2.57055252]
[1772422962472,3.65189474,84.95,84.898,0.28432314]
[1772422962686,3.65189474,84.95,84.916,0.28432314]
[1772422962873,3.65189474,84.95,84.919,2.57055252]
[1772422963172,3.65189474,84.96,84.919,2.57055252]
[1772422963355,3.65189474,84.95,84.919,2.57055252]
[1772422963561,11.77176894,84.949,84.919,2.57055252]
[1772422964173,11.77176894,84.949,84.921,2.57055252]
[1772422970366,11.77176894,84.949,84.922,11.77551164]
[1772422970684,11.77176894,84.949,84.923,2.57055252]
[1772422970873,41.20119129,84.949,84.923,2.57055252]
[1772422974476,41.20119129,84.949,84.913,2.57055252]
[1772422975178,11.77176894,84.949,84.919,2.57055252]
[1772422976269,11.77087226,84.956,84.921,2.57055252]
[1772422977374,11.77087226,84.956,84.923,2.57055252]
[1772422979476,11.77087226,84.956,84.925,2.57055252]
[1772422980188,3.65167838,84.95,84.925,2.57055252]
[1772422983112,11.77176894,84.949,84.925,2.57055252]
[1772422983623,41.20119129,84.949,84.925,2.57055252]
[1772422984701,11.77176894,84.949,84.925,2.57055252]
[1772422986612,3.65167838,84.94,84.925,2.57055252]
[1772422987514,11.77315485,84.939,84.925,2.57055252]
[1772422988419,11.77190751,84.948,84.925,2.57055252]
[1772422989513,41.2016763,84.948,84.925,2.57055252]
[1772422990216,3.65167838,84.94,84.925,2.57055252]
[1772422990414,2.35171629,84.929,84.874,11.78217121]
[1772422990609,3.65167838,84.92,84.874,41.23759925]
[1772422990921,3.65167838,84.92,84.878,0.28432314]
[1772422991819,3.65167838,84.92,84.881,3.69383402]
[1772422992007,3.65167838,84.92,84.882,0.28432314]
[1772422992410,3.65167838,84.92,84.889,2.33788294]
[1772422993020,3.65167838,84.9,84.879,2.33788294]
[1772422993607,2.45119522,84.899,84.873,2.49618209]
[1772422993801,2.45119522,84.899,84.857,0.28432314]
[1772422993802,2.45119522,84.889,84.867,2.49618209]
[1772422994809,2.45119522,84.879,84.855,2.49618209]
[1772422995214,3.65167838,84.88,84.855,2.49618209]
[1772422995415,2.45119522,84.879,84.855,2.49618209]
[1772422995722,11.78286535,84.869,84.848,2.49618209]
[1772422995919,3.65167838,84.86,84.84,2.69618209]
[1772422996128,11.78286535,84.869,84.841,2.49618209]
[1772422996726,14.23406057,84.869,84.841,2.49618209]
[1772422997122,3.65167838,84.89,84.849,2.3362544]
[1772422997427,7.89019075,84.899,84.859,2.3362544]
[1772422997922,2.46711409,84.898,84.859,2.3362544]
[1772422998102,11.77938267,84.895,84.859,2.3362544]
[1772422998307,2.46711409,84.889,84.859,2.3362544]
[1772422998923,14.24649676,84.895,84.859,2.3362544]
[1772422999227,11.78008929,84.889,84.861,2.3362544]
[1772423001422,11.78008929,84.889,84.863,2.3362544]
[1772423002740,3.65167838,84.88,84.863,2.3362544]
[1772423003037,3.65167838,84.88,84.853,2.3362544]
[1772423003337,11.78008929,84.889,84.855,2.3362544]
[1772423003718,3.65167838,84.89,84.859,2.3362544]
[1772423004017,29.4462744,84.901,84.854,11.78494826]
[1772423004018,11.77745324,84.908,84.869,2.3362544]
[1772423004610,3.65167838,84.93,84.888,0.28432314]
[1772423004825,2.46711409,84.929,84.889,2.3362544]
[1772423005525,2.46711409,84.927,84.891,2.3362544]
[1772423006915,2.46711409,84.925,84.892,11.77967299]
[1772423007114,2.46711409,84.925,84.893,2.3362544]
[1772423007527,2.46711409,84.919,84.893,2.3362544]
[1772423009427,2.46711409,84.917,84.894,2.3362544]
[1772423009621,11.77606632,84.918,84.894,2.3362544]
[1772423011534,3.65167838,84.92,84.894,2.3362544]
[1772423011740,3.65167838,84.92,84.896,2.3362544]
[1772423012137,2.46711409,84.919,84.896,2.3362544]
[1772423013035,11.77537298,84.923,84.896,2.3362544]
[1772423014346,2.46711409,84.919,84.887,2.62057754]
[1772423014648,11.77415434,84.932,84.89,2.62057754]
[1772423015738,11.77357068,84.936,84.892,2.62057754]
[1772423017933,11.77357068,84.936,84.894,2.62057754]
[1772423019036,11.77357068,84.936,84.896,2.62057754]
[1772423020243,2.46711409,84.935,84.896,2.62057754]
[1772423022136,11.77384792,84.934,84.899,2.3362544]
[1772423022742,14.24096201,84.934,84.899,2.3362544]
[1772423023641,2.46711409,84.933,84.901,2.3362544]
[1772423024365,2.46711409,84.929,84.901,2.3362544]
[1772423024534,2.46711409,84.919,84.889,3.69383402]
[1772423026233,2.46711409,84.918,84.89,11.77995052]
[1772423026439,2.46711409,84.918,84.891,2.3362544]
[1772423028458,2.46711409,84.918,84.893,2.49428029]
[1772423031456,2.46711409,84.918,84.895,2.49428029]
[1772423032546,2.46711409,84.918,84.897,2.49428029]
[1772423033956,2.32788958,84.916,84.897,2.49428029]
[1772423035366,2.32788958,84.916,84.851,61.8]
[1772423035367,2.32788958,84.909,84.883,11.78086605]
[1772423035560,2.32788958,84.914,84.884,2.77860343]
[1772423035746,2.32788958,84.919,84.884,2.77860343]
[1772423037439,2.32788958,84.919,84.886,2.77860343]
[1772423037861,2.32788958,84.931,84.886,2.77860343]
[1772423038361,2.32788958,84.929,84.886,2.77860343]
[1772423039839,2.32788958,84.927,84.898,0.28432314]
[1772423040039,2.32788958,84.927,84.899,2.49428029]
[1772423042350,2.32788958,84.925,84.899,14.27293424]
[1772423042852,2.32788958,84.925,84.9,2.49428029]
[1772423043460,2.32788958,84.937,84.902,2.49428029]
[1772423044051,11.77329346,84.938,84.902,2.49428029]
[1772423044451,11.77329346,84.938,84.898,0.14216157]
[1772423044452,2.32788958,84.929,84.899,2.49428029]
[1772423045972,2.32788958,84.927,84.899,2.49428029]
[1772423046268,2.32788958,84.927,84.901,2.49428029]
[1772423047449,5.98166191,84.94,84.905,2.49428029]
[1772423047768,2.32788958,84.94,84.909,2.49428029]
[1772423048083,2.32788958,84.938,84.911,2.49428029]
[1772423049754,2.32788958,84.938,84.91,11.77717583]
[1772423050080,2.32788958,84.936,84.908,2.49428029]
[1772423052371,2.32788958,84.936,84.901,0.28432314]
[1772423052372,14.10159888,84.935,84.91,2.49428029]
[1772423052564,2.32788958,84.934,84.91,2.49428029]
[1772423052762,2.32788958,84.955,84.91,2.49428029]
[1772423052959,3.65377233,84.95,84.91,2.49428029]
[1772423053284,2.32788958,84.945,84.91,2.49428029]
[1772423054058,2.33692714,84.943,84.912,2.3323425]
[1772423056164,11.77273904,84.942,84.913,11.77675974]
[1772423056379,2.33692714,84.941,84.914,2.3323425]
[1772423058465,2.37610901,84.939,84.916,2.36951996]
[1772423058668,2.37610901,84.939,84.907,2.36951996]
[1772423058865,2.37610901,84.929,84.899,2.36951996]
[1772423060180,2.37610901,84.927,84.9,14.14808297]